[Event "WJCC U20 Girls 2019"]
[Site "New Delhi"]
[Date "2019.10.18"]
[Round "5.41"]
[White "Rousseau, Christilla"]
[Black "Mirza, Diana"]
[Result "0-1"]
[ECO "A40"]
[WhiteElo "1648"]
[BlackElo "1986"]
[Annotator "NA RC"]
[PlyCount "46"]
[EventDate "2019.10.15"]
[EventType "swiss"]
[EventCountry "IND"]
[SourceTitle "playchess.com"]
[Source "ChessBase"]
[SourceQuality "1"]
[TimeControl "40/5400+30:1800+30"]

1. d4 {[%emt 0:00:00]} g6 {[%emt 0:00:00]} 2. Bf4 {[%emt 0:00:00]} Bg7 {[%emt 0:00:00]} 3. e3 {[%emt 0:00:00]} d6 {[%emt 0:00:00]} 4. Nf3 {[%emt 0:00:29]} Nd7 {[%emt 0:00:00]} 5. h3 {[%emt 0:00:32]} e5 {[%emt 0:00:15]} 6. Bh2 {[%emt 0:00:26]} Qe7 {[%emt 0:00:09]} 7. Be2 {[%emt 0:00:49]} Nh6 {[%emt 0:01:00]} 8. O-O {[%emt 0:03:05]} O-O {[%emt 0:00:21]} 9. c4 {[%emt 0:01:42]} f5 {[%emt 0:00:48]} 10. Nc3 {[%emt 0:01:50]} Nf7 {[%emt 0:03:03]} 11. Nd5 {[%emt 0:04:43]} Qd8 {[%emt 0:00:09]} 12. Rc1 {[%emt 0:00:21]} g5 {[%emt 0:07:45]} 13. b4 {[%emt 0:15:33]} b6 {[%emt 0:14:32]} 14. a4 {[%emt 0:20:08]} a5 {[%emt 0:05:50]} 15. c5 {[%emt 0:06:05]} bxc5 {[%emt 0:11:04]} 16. bxc5 {[%emt 0:01:56]} c6 {[%emt 0:00:16]} 17. Nc3 {[%emt 0:00:56]} e4 {[%emt 0:03:09]} 18. Ne1 {[%emt 0:05:22]} dxc5 {[%emt 0:01:52]} 19. dxc5 {[%emt 0:00:05]} Nxc5 {[%emt 0:00:40]} 20. Qxd8 {[%emt 0:10:42]} Rxd8 {[%emt 0:00:25]} 21. Bc7 {[%emt 0:01:04]} Rd7 {[%emt 0:04:51]} 22. Bb6 {[%emt 0:00:51]} Nb3 {[%emt 0:00:59]} 23. Rc2 {[%emt 0:08:58]} Nd2 {[%emt 0:00:36]} 0-1

[Event "WJCC U20 Girls 2019"]
[Site "New Delhi"]
[Date "2019.10.18"]
[Round "5.42"]
[White "Arushi Kotwal"]
[Black "Punsalan, Vyanla M"]
[Result "0-1"]
[ECO "A04"]
[WhiteElo "1657"]
[BlackElo "1964"]
[Annotator "NA"]
[PlyCount "54"]
[EventDate "2019.10.15"]
[EventType "swiss"]
[EventCountry "IND"]
[SourceTitle "playchess.com"]
[Source "ChessBase"]
[SourceQuality "1"]
[TimeControl "40/5400+30:1800+30"]

1. Nf3 {[%emt 0:00:00]} f5 {[%emt 0:00:00]} 2. b3 {[%emt 0:00:02]} d6 {[%emt 0:00:18]} 3. Bb2 {[%emt 0:00:00]} g6 {[%emt 0:00:41]} 4. d4 {[%emt 0:00:17]} Bg7 {[%emt 0:00:30]} 5. e3 {[%emt 0:01:26]} Nf6 {[%emt 0:01:13]} 6. c4 {[%emt 0:01:03]} O-O {[%emt 0:00:22]} 7. Nbd2 {[%emt 0:01:41]} Qe8 {[%emt 0:00:50]} 8. Bd3 {[%emt 0:00:30]} h6 {[%emt 0:02:02]} 9. e4 {[%emt 0:01:55]} Nh5 {[%emt 0:02:53]} 10. g3 {[%emt 0:08:46]} f4 {[%emt 0:01:59]} 11. e5 {[%emt 0:18:04]} Bg4 {[%emt 0:20:28]} 12. Be4 {[%emt 0:03:46]} Nc6 {[%emt 0:03:09]} 13. Qb1 {[%emt 0:03:48]} dxe5 {[%emt 0:17:09]} 14. Bxg6 {[%emt 0:03:35]} Qd7 {[%emt 0:01:14]} 15. Bh7+ {[%emt 0:04:33]} Kh8 {[%emt 0:03:43]} 16. Nh4 {[%emt 0:00:29]} Rf6 {[%emt 0:02:06]} 17. Ne4 {[%emt 0:03:20]} Nxd4 {[%emt 0:02:31]} 18. Nxf6 {[%emt 0:03:18]} Bxf6 {[%emt 0:00:27]} 19. Bxd4 {[%emt 0:22:23]} Qxd4 {[%emt 0:02:16]} 20. Be4 {[%emt 0:12:49]} Bxh4 {[%emt 0:03:49]} 21. gxh4 {[%emt 0:00:08]} Nf6 22. Bxb7 {[%emt 0:02:18]} Rd8 {[%emt 0:12:34]} 23. Qc1 {[%emt 0:01:26]} Ne4 {[%emt 0:00:40]} 24. Rf1 {[%emt 0:03:18]} Nc5 {[%emt 0:00:26]} 25. f3 {[%emt 0:02:16]} Nd3+ {[%emt 0:00:41]} 26. Ke2 {[%emt 0:00:16]} Nxc1+ {[%emt 0:00:19]} 27. Rfxc1 {[%emt 0:00:03]} Qe3+ {[%emt 0:00:12]} 0-1

[Event "WJCC U20 Girls 2019"]
[Site "New Delhi"]
[Date "2019.10.18"]
[Round "5.43"]
[White "Ananya, Suresh"]
[Black "Abdala Cancino, Patricia Anastas"]
[Result "1/2-1/2"]
[ECO "C78"]
[WhiteElo "1896"]
[BlackElo "1608"]
[Annotator "NA"]
[PlyCount "74"]
[EventDate "2019.10.15"]
[EventType "swiss"]
[EventCountry "IND"]
[SourceTitle "playchess.com"]
[Source "ChessBase"]
[SourceQuality "1"]
[TimeControl "40/5400+30:1800+30"]

1. e4 {[%emt 0:00:00]} e5 {[%emt 0:00:00]} 2. Nf3 {[%emt 0:00:00]} Nc6 {[%emt 0:00:19]} 3. Bb5 {[%emt 0:00:47]} a6 {[%emt 0:00:07]} 4. Ba4 {[%emt 0:00:05]} Nf6 {[%emt 0:00:33]} 5. O-O {[%emt 0:00:14]} b5 {[%emt 0:04:38]} 6. Bb3 {[%emt 0:00:07]} Bc5 {[%emt 0:00:24]} 7. c3 {[%emt 0:00:50]} Bb6 {[%emt 0:00:23]} 8. d3 {[%emt 0:04:59]} d6 {[%emt 0:01:37]} 9. h3 {[%emt 0:00:53]} O-O {[%emt 0:02:11]} 10. Bg5 {[%emt 0:00:58]} h6 {[%emt 0:00:18]} 11. Be3 {[%emt 0:07:05]} Bxe3 {[%emt 0:01:23]} 12. fxe3 {[%emt 0:02:55]} Na5 {[%emt 0:03:27]} 13. Bc2 {[%emt 0:00:13]} c5 {[%emt 0:00:33]} 14. Nbd2 {[%emt 0:01:02]} Bb7 {[%emt 0:00:23]} 15. Qe1 {[%emt 0:02:03]} Qe7 {[%emt 0:01:17]} 16. Nh4 {[%emt 0:01:13]} g6 {[%emt 0:00:38]} 17. b4 {[%emt 0:06:26]} cxb4 {[%emt 0:02:03]} 18. cxb4 {[%emt 0:00:04]} Nc6 {[%emt 0:00:08]} 19. Bb3 {[%emt 0:00:37]} Kh7 {[%emt 0:00:25]} 20. Qf2 {[%emt 0:00:16]} Kg7 {[%emt 0:02:13]} 21. Qg3 {[%emt 0:02:35]} Kh7 {[%emt 0:00:33]} 22. Qf3 {[%emt 0:01:50]} Kg7 {[%emt 0:01:45]} 23. Qg3 {[%emt 0:04:45]} Kh7 {[%emt 0:01:59]} 24. Rf3 {[%emt 0:03:44]} Nh5 {[%emt 0:02:37]} 25. Qf2 {[%emt 0:04:23]} f6 {[%emt 0:04:56]} 26. a3 {[%emt 0:01:43]} Nb8 {[%emt 0:05:51]} 27. Rf5 {[%emt 0:04:09]} Ng7 {[%emt 0:09:20]} 28. Rf3 {[%emt 0:00:10]} Nh5 {[%emt 0:02:45]} 29. Rc1 {[%emt 0:11:00]} a5 {[%emt 0:00:26]} 30. Nf1 {[%emt 0:00:49]} axb4 {[%emt 0:00:59]} 31. axb4 {[%emt 0:00:03]} Nc6 {[%emt 0:12:06]} 32. Qe1 {[%emt 0:08:03]} Ra3 {[%emt 0:03:22]} 33. Rb1 {[%emt 0:01:19]} Nd8 {[%emt 0:00:58]} 34. Ng3 {[%emt 0:01:22]} Ng7 {[%emt 0:00:22]} 35. Ne2 {[%emt 0:02:29]} Nde6 {[%emt 0:01:58]} 36. Nc3 {[%emt 0:00:56]} Ng5 {[%emt 0:01:54]} 37. Rf1 {[%emt 0:03:23]} Bc6 {[%emt 0:02:01]} 1/2-1/2

[Event "WJCC U20 Girls 2019"]
[Site "New Delhi"]
[Date "2019.10.18"]
[Round "5.44"]
[White "Djuric, Anja"]
[Black "Tamarozi, Isabelle"]
[Result "0-1"]
[ECO "B22"]
[WhiteElo "1493"]
[BlackElo "2029"]
[Annotator "NA"]
[PlyCount "78"]
[EventDate "2019.10.15"]
[EventType "swiss"]
[EventCountry "IND"]
[SourceTitle "playchess.com"]
[Source "ChessBase"]
[SourceQuality "1"]
[TimeControl "40/5400+30:1800+30"]

1. e4 {[%emt 0:00:00]} c5 {[%emt 0:00:00]} 2. c3 {[%emt 0:00:00]} Nf6 {[%emt 0:00:00]} 3. e5 {[%emt 0:00:26]} Nd5 {[%emt 0:00:21]} 4. Bc4 {[%emt 0:00:08]} Nb6 {[%emt 0:01:09]} 5. Bb3 {[%emt 0:00:08]} c4 {[%emt 0:10:03]} 6. Bc2 {[%emt 0:00:28]} Nc6 {[%emt 0:01:28]} 7. Nf3 {[%emt 0:00:18]} d6 {[%emt 0:04:33]} 8. Qe2 {[%emt 0:01:09]} Bg4 {[%emt 0:04:31]} 9. h3 {[%emt 0:02:49]} Bxf3 {[%emt 0:08:11]} 10. Qxf3 {[%emt 0:00:06]} d5 {[%emt 0:01:48]} 11. Qe2 {[%emt 0:04:56]} d4 {[%emt 0:05:52]} 12. d3 {[%emt 0:01:26]} dxc3 {[%emt 0:04:45]} 13. bxc3 {[%emt 0:00:59]} cxd3 {[%emt 0:01:55]} 14. Bxd3 {[%emt 0:00:20]} Nxe5 {[%emt 0:01:47]} 15. Bb5+ {[%emt 0:01:03]} Ned7 {[%emt 0:01:20]} 16. O-O {[%emt 0:00:19]} a6 {[%emt 0:03:14]} 17. Bxd7+ {[%emt 0:00:20]} Qxd7 {[%emt 0:01:19]} 18. Rd1 {[%emt 0:00:17]} Qc6 {[%emt 0:01:58]} 19. Be3 {[%emt 0:08:23]} e6 {[%emt 0:03:58]} 20. Nd2 {[%emt 0:02:06]} Be7 {[%emt 0:02:32]} 21. Qg4 {[%emt 0:02:08]} O-O-O {[%emt 0:10:34]} 22. Bxb6 {[%emt 0:07:06]} Qxb6 {[%emt 0:01:00]} 23. Rab1 {[%emt 0:01:05]} Qc6 {[%emt 0:01:52]} 24. Nc4 {[%emt 0:00:17]} Rxd1+ {[%emt 0:04:01]} 25. Rxd1 {[%emt 0:00:07]} Rd8 {[%emt 0:02:43]} 26. Rb1 {[%emt 0:00:24]} Bc5 {[%emt 0:05:18]} 27. Qf4 {[%emt 0:05:17]} b5 {[%emt 0:04:49]} 28. Nb2 {[%emt 0:06:55]} Qd6 {[%emt 0:03:29]} 29. Qf3 {[%emt 0:03:37]} Qd5 {[%emt 0:01:32]} 30. Qxf7 {[%emt 0:04:48]} Rf8 {[%emt 0:02:36]} 31. Qxg7 {[%emt 0:00:17]} Rxf2 {[%emt 0:00:44]} 32. Kh1 {[%emt 0:00:08]} Qf5 {[%emt 0:01:33]} 33. Qg8+ {[%emt 0:02:34]} Kb7 {[%emt 0:00:38]} 34. Qg7+ {[%emt 0:02:22]} Kc6 {[%emt 0:00:23]} 35. Rd1 {[%emt 0:00:56]} Rf1+ 36. Rxf1 {[%emt 0:00:14]} Qxf1+ {[%emt 0:01:27]} 37. Kh2 {[%emt 0:00:02]} Bd6+ {[%emt 0:02:30]} 38. g3 {[%emt 0:00:18]} Qf2+ {[%emt 0:00:58]} 39. Kh1 {[%emt 0:00:09]} Bxg3 {[%emt 0:00:24]} 0-1

[Event "WJCC U20 Girls 2019"]
[Site "New Delhi"]
[Date "2019.10.18"]
[Round "5.45"]
[White "Shivika Rohilla"]
[Black "Figueroa Bernal, Julia Dennis"]
[Result "1/2-1/2"]
[ECO "B41"]
[WhiteElo "1721"]
[BlackElo "1777"]
[Annotator "NA"]
[PlyCount "102"]
[EventDate "2019.10.15"]
[EventType "swiss"]
[EventCountry "IND"]
[SourceTitle "playchess.com"]
[Source "ChessBase"]
[SourceQuality "1"]
[TimeControl "40/5400+30:1800+30"]

1. e4 {[%emt 0:00:00]} c5 {[%emt 0:00:00]} 2. Nf3 {[%emt 0:00:00]} e6 {[%emt 0:00:00]} 3. d4 {[%emt 0:00:00]} cxd4 {[%emt 0:00:00]} 4. Nxd4 {[%emt 0:00:00]} a6 {[%emt 0:00:00]} 5. c4 {[%emt 0:00:00]} Nf6 {[%emt 0:00:27]} 6. Nc3 {[%emt 0:00:06]} Bb4 {[%emt 0:00:41]} 7. Qd3 {[%emt 0:00:48]} Qa5 {[%emt 0:10:39]} 8. Bd2 {[%emt 0:04:22]} O-O {[%emt 0:05:46]} 9. Nc2 {[%emt 0:08:51]} Nc6 {[%emt 0:09:36]} 10. a3 {[%emt 0:00:56]} Be7 {[%emt 0:09:33]} 11. b4 {[%emt 0:01:40]} Qc7 {[%emt 0:00:54]} 12. f4 {[%emt 0:02:13]} d6 {[%emt 0:03:17]} 13. Be2 {[%emt 0:00:41]} Bd7 {[%emt 0:09:53]} 14. O-O {[%emt 0:01:38]} Rfd8 {[%emt 0:01:37]} 15. Be3 {[%emt 0:08:50]} Rac8 {[%emt 0:04:08]} 16. Rfd1 {[%emt 0:06:28]} Nb8 {[%emt 0:03:38]} 17. Bd2 {[%emt 0:14:27]} Bc6 {[%emt 0:04:29]} 18. Ne3 {[%emt 0:05:46]} b6 {[%emt 0:04:38]} 19. Rac1 {[%emt 0:04:08]} Qa7 {[%emt 0:01:19]} 20. Be1 {[%emt 0:03:26]} Nbd7 {[%emt 0:00:25]} 21. Bf2 {[%emt 0:01:14]} Qa8 {[%emt 0:02:01]} 22. Bf3 {[%emt 0:00:56]} g6 {[%emt 0:01:52]} 23. Nf1 {[%emt 0:09:03]} Ne8 {[%emt 0:02:35]} 24. Qe2 {[%emt 0:03:01]} Bf6 {[%emt 0:01:38]} 25. Nd2 {[%emt 0:05:17]} Bb7 {[%emt 0:04:32]} 26. Na4 {[%emt 0:02:19]} Qa7 {[%emt 0:03:16]} 27. Qe3 {[%emt 0:01:54]} Qa8 {[%emt 0:04:56]} 28. Nxb6 {[%emt 0:01:24]} Nxb6 {[%emt 0:00:06]} 29. Qxb6 {[%emt 0:00:04]} e5 {[%emt 0:04:04]} 30. Qe3 {[%emt 0:02:33]} Ng7 {[%emt 0:00:38]} 31. Bg4 {[%emt 0:01:28]} Rb8 {[%emt 0:02:42]} 32. fxe5 {[%emt 0:01:05]} Bxe5 {[%emt 0:00:25]} 33. Bf3 {[%emt 0:00:40]} Ne6 {[%emt 0:00:16]} 34. Qb3 {[%emt 0:01:55]} Nd4 {[%emt 0:01:15]} 35. Bxd4 {[%emt 0:00:08]} Bxd4+ {[%emt 0:00:03]} 36. Kh1 {[%emt 0:00:29]} Be5 {[%emt 0:00:29]} 37. Qd3 {[%emt 0:00:28]} Bc6 {[%emt 0:00:36]} 38. g3 {[%emt 0:01:13]} Kg7 {[%emt 0:00:40]} 39. Kg2 {[%emt 0:00:16]} h5 {[%emt 0:00:31]} 40. h4 {[%emt 0:01:42]} Re8 {[%emt 0:01:25]} 41. Re1 {[%emt 0:31:34]} Re7 {[%emt 0:31:08]} 42. Re2 {[%emt 0:02:29]} Rbe8 {[%emt 0:01:13]} 43. Rce1 {[%emt 0:00:31]} Kg8 {[%emt 0:00:24]} 44. Nb3 {[%emt 0:01:19]} Qa7 {[%emt 0:00:10]} 45. Qe3 {[%emt 0:04:07]} Qc7 {[%emt 0:01:06]} 46. Na5 {[%emt 0:00:00]} Ba8 {[%emt 0:00:00]} 47. Qd3 {[%emt 0:00:00]} Kg7 {[%emt 0:00:00]} 48. Nb3 {[%emt 0:00:00]} Qa7 {[%emt 0:00:00]} 49. Qe3 {[%emt 0:00:00]} Qc7 {[%emt 0:00:00]} 50. Qd3 {[%emt 0:00:00]} Qa7 {[%emt 0:00:00]} 51. c5 {[%emt 0:00:00]} Rd7 {[%emt 0:00:00]} 1/2-1/2

[Event "WJCC U20 Girls 2019"]
[Site "New Delhi"]
[Date "2019.10.18"]
[Round "5.46"]
[White "Du Plessis, Anika"]
[Black "Yaakub, Nov Genevia Pslam"]
[Result "1-0"]
[ECO "C44"]
[WhiteElo "1594"]
[BlackElo "1316"]
[Annotator "NA RC"]
[PlyCount "49"]
[EventDate "2019.10.15"]
[EventType "swiss"]
[EventCountry "IND"]
[SourceTitle "playchess.com"]
[Source "ChessBase"]
[SourceQuality "1"]
[TimeControl "40/5400+30:1800+30"]

1. e4 {[%emt 0:00:00]} e5 {[%emt 0:00:00]} 2. Nf3 {[%emt 0:00:00]} Nc6 {[%emt 0:00:00]} 3. d4 {[%emt 0:00:17]} exd4 {[%emt 0:02:20]} 4. Bc4 {[%emt 0:00:35]} h6 {[%emt 0:01:05]} 5. O-O {[%emt 0:01:20]} Bc5 {[%emt 0:04:07]} 6. c3 {[%emt 0:00:48]} dxc3 {[%emt 0:01:27]} 7. Bxf7+ {[%emt 0:00:34]} Kxf7 {[%emt 0:00:54]} 8. Qd5+ {[%emt 0:00:04]} Ke8 {[%emt 0:01:34]} 9. Qxc5 {[%emt 0:01:52]} Nf6 {[%emt 0:06:45]} 10. e5 {[%emt 0:05:18]} Ne4 {[%emt 0:11:17]} 11. Qe3 {[%emt 0:05:01]} Ng5 {[%emt 0:03:04]} 12. Nxc3 {[%emt 0:07:33]} Nxf3+ {[%emt 0:13:05]} 13. Qxf3 {[%emt 0:00:05]} Nd4 {[%emt 0:05:55]} 14. Qg4 {[%emt 0:06:20]} Ne6 {[%emt 0:01:15]} 15. f4 {[%emt 0:02:45]} c6 {[%emt 0:11:47]} 16. Be3 {[%emt 0:06:47]} Qe7 {[%emt 0:05:55]} 17. Ne4 Kd8 {[%emt 0:06:35]} 18. f5 {[%emt 0:12:56]} Nc7 {[%emt 0:06:21]} 19. Nd6 {[%emt 0:08:02]} Rf8 {[%emt 0:05:12]} 20. Bd4 {[%emt 0:03:28]} Nb5 {[%emt 0:03:22]} 21. Nxb5 {[%emt 0:03:57]} cxb5 {[%emt 0:00:18]} 22. Rac1 {[%emt 0:01:25]} b6 {[%emt 0:02:02]} 23. f6 {[%emt 0:03:21]} gxf6 {[%emt 0:01:32]} 24. exf6 {[%emt 0:00:04]} Qf7 {[%emt 0:03:48]} 25. Qf4 {[%emt 0:00:29]} 1-0

[Event "WJCC U20 Girls 2019"]
[Site "New Delhi"]
[Date "2019.10.19"]
[Round "6.1"]
[White "Altantuya, Boldbaatar"]
[Black "Alinasab, Mobina"]
[Result "0-1"]
[ECO "D47"]
[WhiteElo "2277"]
[BlackElo "2239"]
[Annotator "NA"]
[PlyCount "78"]
[EventDate "2019.10.15"]
[EventType "swiss"]
[EventCountry "IND"]
[SourceTitle "playchess.com"]
[Source "ChessBase"]
[SourceQuality "1"]
[TimeControl "40/5400+30:1800+30"]

1. d4 {[%emt 0:00:00]} Nf6 {[%emt 0:00:00]} 2. Nf3 {[%emt 0:00:00]} e6 {[%emt 0:00:00]} 3. c4 {[%emt 0:00:07]} d5 {[%emt 0:00:00]} 4. Nc3 {[%emt 0:00:13]} c6 {[%emt 0:00:12]} 5. e3 {[%emt 0:00:31]} Nbd7 {[%emt 0:00:43]} 6. Bd3 {[%emt 0:00:37]} dxc4 {[%emt 0:04:37]} 7. Bxc4 {[%emt 0:00:07]} b5 {[%emt 0:00:26]} 8. Bd3 {[%emt 0:00:25]} Bb7 {[%emt 0:01:47]} 9. O-O {[%emt 0:00:13]} a6 {[%emt 0:00:52]} 10. e4 {[%emt 0:00:44]} c5 {[%emt 0:09:52]} 11. d5 {[%emt 0:00:13]} e5 {[%emt 0:03:59]} (11... Qc7 $11) 12. Ne2 {[%emt 0:01:10]} c4 {[%emt 0:03:57]} 13. Bc2 {[%emt 0:00:14]} Bc5 {[%emt 0:00:23]} 14. Ng3 {[%emt 0:07:34]} g6 {[%emt 0:03:45]} 15. Qe2 $14 {[%emt 0:05:07]} Qb6 {[%emt 0:02:43]} 16. Bd2 {[%emt 0:04:47]} h5 {[%emt 0:04:35]} 17. Rfd1 {[%emt 0:06:54]} Ng4 {[%emt 0:11:48]} 18. Be1 {[%emt 0:00:18]} h4 {[%emt 0:01:20]} 19. Nf1 {[%emt 0:00:38]} h3 {[%emt 0:00:46]} 20. Ng5 {[%emt 0:32:54]} hxg2 {[%emt 0:03:58]} 21. Qxg4 {[%emt 0:01:23]} gxf1=Q+ {[%emt 0:00:11]} 22. Kxf1 {[%emt 0:00:03]} Rxh2 {[%emt 0:09:45]} 23. Kg1 {[%emt 0:06:37]} Rh5 {[%emt 0:06:44]} 24. Nxf7 {[%emt 0:05:33]} Qf6 {[%emt 0:00:29]} 25. Qe6+ {[%emt 0:03:35]} Kf8 {[%emt 0:00:42]} 26. Qxf6 {[%emt 0:03:58]} Nxf6 {[%emt 0:00:02]} 27. Nxe5 {[%emt 0:00:28]} Rxe5 {[%emt 0:00:24]} 28. Bc3 {[%emt 0:00:08]} Rg5+ {[%emt 0:00:25]} 29. Kf1 {[%emt 0:00:04]} Kf7 {[%emt 0:08:15]} 30. Ke2 {[%emt 0:03:16]} Re8 {[%emt 0:03:19]} 31. Kf3 {[%emt 0:00:55]} Rh5 {[%emt 0:01:01]} 32. Rh1 {[%emt 0:00:37]} b4 {[%emt 0:02:55]} 33. Bd2 {[%emt 0:04:16]} Reh8 {[%emt 0:03:13]} 34. Rxh5 {[%emt 0:01:32]} Rxh5 {[%emt 0:00:12]} 35. Kg2 {[%emt 0:01:20]} g5 {[%emt 0:05:44]} 36. f3 {[%emt 0:01:35]} a5 {[%emt 0:03:17]} 37. Bd1 {[%emt 0:00:36]} Bd4 {[%emt 0:01:58]} 38. Rb1 {[%emt 0:01:27]} Rh8 {[%emt 0:00:25]} 39. Be2 {[%emt 0:00:23]} Be5 {[%emt 0:02:20]} 0-1

[Event "WJCC U20 Girls 2019"]
[Site "New Delhi"]
[Date "2019.10.19"]
[Round "6.3"]
[White "Shuvalova, Polina"]
[Black "Solozhenkina, Elizaveta"]
[Result "1-0"]
[ECO "C03"]
[WhiteElo "2412"]
[BlackElo "2283"]
[Annotator "NA"]
[PlyCount "79"]
[EventDate "2019.10.15"]
[EventType "swiss"]
[EventCountry "IND"]
[SourceTitle "playchess.com"]
[Source "ChessBase"]
[SourceQuality "1"]
[TimeControl "40/5400+30:1800+30"]

1. e4 {[%emt 0:00:00]} e6 {[%emt 0:00:00]} 2. d4 {[%emt 0:00:00]} d5 {[%emt 0:00:00]} 3. Nd2 {[%emt 0:00:05]} Be7 {[%emt 0:00:01]} 4. Bd3 {[%emt 0:00:22]} c5 {[%emt 0:01:10]} 5. dxc5 {[%emt 0:00:05]} Nf6 {[%emt 0:00:19]} 6. Qe2 {[%emt 0:00:49]} O-O {[%emt 0:01:35]} 7. Ngf3 {[%emt 0:00:03]} a5 {[%emt 0:00:18]} 8. O-O {[%emt 0:01:31]} Na6 {[%emt 0:00:09]} 9. e5 {[%emt 0:00:15]} Nd7 {[%emt 0:00:06]} 10. c4 {[%emt 0:05:30]} Nb4 {[%emt 0:00:24]} 11. b3 {[%emt 0:06:14]} Nxd3 {[%emt 0:19:31]} 12. Qxd3 {[%emt 0:00:06]} Nxc5 {[%emt 0:00:05]} 13. Qe3 {[%emt 0:05:36]} Bd7 $11 {[%emt 0:02:56]} 14. Bb2 {[%emt 0:03:02]} b5 {[%emt 0:21:01]} 15. cxd5 {[%emt 0:03:51]} exd5 {[%emt 0:00:07]} 16. Nd4 {[%emt 0:07:09]} Ra6 {[%emt 0:06:00]} 17. Rad1 {[%emt 0:08:37]} Re8 {[%emt 0:03:32]} 18. Qf3 {[%emt 0:04:49]} Rg6 {[%emt 0:01:25]} 19. h3 {[%emt 0:05:01]} Bg5 {[%emt 0:18:10]} 20. Nf5 {[%emt 0:05:32]} Bxd2 {[%emt 0:06:21]} 21. Rxd2 {[%emt 0:04:24]} Qg5 {[%emt 0:00:43]} 22. Ne3 {[%emt 0:01:45]} d4 {[%emt 0:01:56]} 23. Rxd4 {[%emt 0:08:30]} Bc6 {[%emt 0:01:27]} 24. Nd5 {[%emt 0:03:08]} Qxe5 {[%emt 0:06:02]} 25. Rfd1 {[%emt 0:08:30]} Ne4 {[%emt 0:03:58]} 26. Qf4 {[%emt 0:01:51]} Qe6 {[%emt 0:01:18]} 27. Qe3 {[%emt 0:01:27]} Ng5 {[%emt 0:01:39]} 28. Kf1 {[%emt 0:05:10]} Qd6 {[%emt 0:01:32]} 29. Nf4 {[%emt 0:01:36]} Qc7 {[%emt 0:01:50]} 30. Qc3 {[%emt 0:05:39]} Rf6 {[%emt 0:00:36]} 31. Qg3 {[%emt 0:01:45]} Rf5 {[%emt 0:00:37]} 32. Rd6 {[%emt 0:01:04]} f6 {[%emt 0:00:31]} 33. Qg4 {[%emt 0:01:40]} Be4 {[%emt 0:00:23]} 34. h4 {[%emt 0:00:40]} Qc2 {[%emt 0:00:46]} 35. hxg5 {[%emt 0:00:54]} Rxg5 {[%emt 0:00:05]} 36. Qd7 {[%emt 0:00:45]} Bxg2+ {[%emt 0:00:34]} 37. Nxg2 {[%emt 0:00:15]} Qe2+ {[%emt 0:00:04]} 38. Kg1 {[%emt 0:00:01]} Re4 {[%emt 0:01:06]} 39. Qd8+ {[%emt 0:00:50]} Re8 {[%emt 0:00:07]} 40. Qxe8+ {[%emt 0:00:12]} 1-0

[Event "WJCC U20 Girls 2019"]
[Site "New Delhi"]
[Date "2019.10.19"]
[Round "6.4"]
[White "Rakshitta Ravi"]
[Black "Vaishali R"]
[Result "1/2-1/2"]
[ECO "A47"]
[WhiteElo "2310"]
[BlackElo "2385"]
[Annotator "NA"]
[PlyCount "84"]
[EventDate "2019.10.15"]
[EventType "swiss"]
[EventCountry "IND"]
[SourceTitle "playchess.com"]
[Source "ChessBase"]
[SourceQuality "1"]
[TimeControl "40/5400+30:1800+30"]

1. d4 {[%emt 0:00:03]} Nf6 {[%emt 0:00:00]} 2. Nf3 {[%emt 0:00:14]} b6 {[%emt 0:00:24]} 3. g3 {[%emt 0:00:18]} Bb7 {[%emt 0:00:05]} 4. Bg2 {[%emt 0:00:05]} c5 {[%emt 0:00:31]} 5. dxc5 {[%emt 0:01:53]} bxc5 {[%emt 0:00:06]} 6. c4 {[%emt 0:00:07]} g6 {[%emt 0:01:10]} 7. b3 {[%emt 0:01:18]} Bg7 {[%emt 0:00:27]} 8. Bb2 {[%emt 0:00:06]} O-O {[%emt 0:00:24]} 9. O-O {[%emt 0:00:07]} d6 {[%emt 0:00:56]} 10. Nc3 {[%emt 0:00:32]} Nbd7 {[%emt 0:03:26]} 11. Qc2 {[%emt 0:00:37]} Rb8 {[%emt 0:06:35]} 12. Rfe1 {[%emt 0:01:29]} Ng4 $14 {[%emt 0:09:24]} 13. Rad1 {[%emt 0:12:19]} Nge5 {[%emt 0:07:10]} 14. Nxe5 {[%emt 0:06:18]} Nxe5 {[%emt 0:00:33]} 15. Bxb7 {[%emt 0:08:12]} Rxb7 {[%emt 0:00:05]} 16. Na4 {[%emt 0:06:39]} Qc8 {[%emt 0:09:39]} 17. Qc3 {[%emt 0:02:55]} Bf6 {[%emt 0:01:13]} 18. f4 {[%emt 0:06:54]} Nc6 {[%emt 0:13:12]} 19. Qd3 {[%emt 0:13:57]} Bxb2 {[%emt 0:11:29]} 20. Nxb2 {[%emt 0:00:14]} Nb4 {[%emt 0:04:27]} 21. Qb1 {[%emt 0:02:17]} Qf5 {[%emt 0:13:54]} 22. Nd3 {[%emt 0:01:29]} Nc6 {[%emt 0:04:47]} 23. e3 {[%emt 0:00:22]} a5 {[%emt 0:01:02]} 24. Qc2 {[%emt 0:07:26]} a4 {[%emt 0:03:40]} 25. bxa4 {[%emt 0:02:11]} Nb4 {[%emt 0:00:33]} 26. Nxb4 {[%emt 0:01:17]} Rxb4 {[%emt 0:00:06]} 27. Qxf5 {[%emt 0:05:06]} gxf5 {[%emt 0:00:02]} 28. e4 {[%emt 0:02:02]} fxe4 {[%emt 0:01:50]} 29. Rxe4 {[%emt 0:00:05]} Rxa4 {[%emt 0:00:46]} 30. Rd2 {[%emt 0:05:36]} Rfa8 {[%emt 0:02:48]} 31. Rxe7 {[%emt 0:01:05]} Rxa2 {[%emt 0:00:19]} 32. Ree2 {[%emt 0:00:34]} Rxd2 {[%emt 0:01:50]} 33. Rxd2 {[%emt 0:00:06]} Ra6 {[%emt 0:00:03]} 34. Kf2 {[%emt 0:01:37]} Kg7 {[%emt 0:01:36]} 35. Kf3 {[%emt 0:01:26]} f5 {[%emt 0:00:59]} 36. Rd3 {[%emt 0:03:11]} h5 {[%emt 0:00:49]} 37. h3 {[%emt 0:00:20]} Kf6 {[%emt 0:00:20]} 38. g4 {[%emt 0:00:30]} hxg4+ {[%emt 0:00:12]} 39. hxg4 {[%emt 0:00:05]} fxg4+ {[%emt 0:00:17]} 40. Kxg4 {[%emt 0:00:07]} Ke7 {[%emt 0:01:08]} 41. Re3+ {[%emt 0:30:51]} Kf6 {[%emt 0:04:22]} 42. Rd3 {[%emt 0:00:00]} Ke7 {[%emt 0:00:09]} 1/2-1/2